fUST/lending_fUST_20240927
["ID","MTS","AMOUNT","RATE_DAILY","PERIOD"]
[339243146,1727394639294,-500.0,0.00019178,2]
[339243148,1727394639303,-500.0,0.00019178,2]
[339243151,1727394639443,-506.61405498,0.00019178,2]
[339243152,1727394639454,-500.0,0.00019178,2]
[339243153,1727394639463,-607.89724423,0.00019178,2]
[339243154,1727394639473,-484.25287736,0.00019178,2]
[339243155,1727394639483,-500.0,0.00019178,2]
[339243156,1727394639492,-500.0,0.00019178,2]
[339243157,1727394639503,-510.30030454,0.00019178,2]
[339243158,1727394639513,-367.48564601,0.00019178,2]
[339243159,1727394639525,-504.55730846,0.00019178,2]
[339243160,1727394639534,-257.21,0.00019178,2]
[339243161,1727394639545,-500.0,0.00019178,2]
[339243162,1727394639556,-239.3389003,0.00019178,2]
[339243163,1727394639565,-501.26644722,0.00019178,2]
[339243164,1727394639574,-500.0,0.00019178,2]
[339243165,1727394639583,-500.0,0.00019178,2]
[339243166,1727394639593,-500.0,0.00019178,2]
[339243167,1727394639602,-372.61466046,0.00019178,2]
[339243168,1727394639611,-457.10591749,0.00019178,2]
[339243169,1727394639622,-500.0,0.00019178,2]
[339243170,1727394639631,-697.71,0.00019178,2]
[339243171,1727394639641,-522.70250483,0.00019178,2]
[339243172,1727394639651,-500.0,0.00019178,2]
[339243173,1727394639660,-500.0,0.00019178,2]
[339243174,1727394639669,-501.60824517,0.00019178,2]
[339243175,1727394639679,-501.85314975,0.00019178,2]
[339243176,1727394639689,-164.92297538,0.00019178,2]
[339243187,1727394640680,-338.20132912,0.00019178,2]
[339243188,1727394640691,-500.0,0.00019178,2]
[339243189,1727394640702,-501.97075498,0.00019178,2]
[339243190,1727394640712,-500.0,0.00019178,2]
[339243191,1727394640721,-502.7753136,0.00019178,2]
[339243192,1727394640731,-500.0,0.00019178,2]
[339243193,1727394640741,-547.23880319,0.00019178,2]
[339243194,1727394640751,-500.0,0.00019178,2]
[339243195,1727394640761,-500.0,0.00019178,2]
[339243196,1727394640772,-500.0,0.00019178,2]
[339243197,1727394640782,-500.0,0.00019178,2]
[339243198,1727394640792,-516.2292865,0.00019178,2]
[339243199,1727394640802,-500.0,0.00019178,2]
[339243200,1727394640815,-500.0,0.00019178,2]
[339243201,1727394640826,-500.0,0.00019178,2]
[339243202,1727394640836,-604.00328427,0.00019178,2]
[339243203,1727394640846,-500.0,0.00019178,2]
[339243204,1727394640856,-500.0,0.00019178,2]
[339243205,1727394640865,-500.0,0.00019178,2]
[339243206,1727394640875,-500.0,0.00019178,2]
[339243207,1727394640884,-500.0,0.00019178,2]
[339243208,1727394640894,-500.0,0.00019178,2]
[339243209,1727394640904,-500.0,0.00019178,2]
[339243210,1727394640913,-505.17757509,0.00019178,2]
[339243211,1727394640923,-255.39,0.00019178,2]
[339243212,1727394640932,-509.68535942,0.00019178,2]
[339243213,1727394640942,-256.48874465,0.00019178,2]
[339243214,1727394640951,-505.81315304,0.00019178,2]
[339243215,1727394640961,-500.0,0.00019178,2]
[339243216,1727394640970,-500.0,0.00019178,2]
[339243217,1727394640980,-500.0,0.00019178,2]
[339243218,1727394640989,-500.0,0.00019178,2]
[339243219,1727394641000,-500.0,0.00019178,2]
[339243220,1727394641009,-500.0,0.00019178,2]
[339243221,1727394641019,-500.0,0.00019178,2]
[339243222,1727394641028,-500.0,0.00019178,2]
[339243223,1727394641038,-500.0,0.00019178,2]
[339243224,1727394641047,-500.0,0.00019178,2]
[339243225,1727394641059,-500.0,0.00019178,2]
[339243226,1727394641069,-514.98980411,0.00019178,2]
[339243227,1727394641078,-500.0,0.00019178,2]
[339243228,1727394641088,-500.0,0.00019178,2]
[339243229,1727394641097,-500.0,0.00019178,2]
[339243230,1727394641106,-509.35448854,0.00019178,2]
[339243231,1727394641116,-500.0,0.00019178,2]
[339243232,1727394641126,-24609.76,0.00019178,2]
[339243233,1727394641136,-500.0,0.00019178,2]
[339243234,1727394641146,-630.28,0.00019178,2]
[339243235,1727394641154,-173.899289,0.00019178,2]
[339243236,1727394641164,-176.348827,0.00019178,2]
[339243237,1727394641173,-222.715311,0.00019262,2]
[339243238,1727394641182,-330.4145299,0.000193,2]
[339243239,1727394641191,-600.0,0.000194,2]
[339243240,1727394641201,-306.0,0.000194,2]
[339243241,1727394641212,-476.58079027,0.00019414,2]
[339243242,1727394641221,-541.3,0.00019441,2]
[339243243,1727394641230,-33591.8014385,0.00019442,3]
[339243244,1727394641240,-500.0,0.00019452,2]
[339243245,1727394641249,-500.0,0.00019452,2]
[339243246,1727394641258,-500.0,0.00019452,2]
[339243247,1727394641268,-424.23185369,0.00019452,2]
[339243248,1727394641280,-500.0,0.00019452,2]
[339243249,1727394641290,-506.31631683,0.00019452,2]
[339243250,1727394641299,-504.73746437,0.00019452,2]
[339243251,1727394641309,-500.0,0.00019452,2]
[339243252,1727394641319,-4475.54,0.00019452,2]
[339243253,1727394641328,-500.0,0.00019452,2]
[339243254,1727394641338,-188.10734985,0.00019452,2]
[339243255,1727394641347,-500.0,0.00019452,2]
[339243256,1727394641357,-500.0,0.00019452,2]
[339243257,1727394641366,-507.37592985,0.00019452,2]
[339243258,1727394641376,-257.21,0.00019452,2]
[339243259,1727394641385,-152.81325191,0.00019452,2]
[339243260,1727394641395,-504.16760848,0.00019452,2]
[339243261,1727394641407,-503.82395502,0.00019452,2]
[339243262,1727394641419,-500.0,0.00019452,2]
[339243263,1727394641429,-500.0,0.00019452,2]
[339243264,1727394641439,-697.71,0.00019452,2]
[339243265,1727394641449,-500.0,0.00019452,2]
[339243266,1727394641459,-500.0,0.00019452,2]
[339243267,1727394641468,-515.17891446,0.00019452,2]
[339243268,1727394641478,-500.0,0.00019452,2]
[339243269,1727394641488,-502.36019001,0.00019452,2]
[339243270,1727394641498,-500.0,0.00019452,2]
[339243271,1727394641507,-500.0,0.00019452,2]
[339243272,1727394641517,-500.0,0.00019452,2]
[339243273,1727394641526,-500.0,0.00019452,2]
[339243274,1727394641536,-500.0,0.00019452,2]
[339243275,1727394641546,-500.0,0.00019452,2]
[339243276,1727394641556,-649.211943,0.00019452,2]
[339243277,1727394641565,-500.0,0.00019452,2]
[339243278,1727394641574,-606.58122147,0.00019452,2]
[339243279,1727394641584,-500.0,0.00019452,2]
[339243280,1727394641594,-500.0,0.00019452,2]
[339243281,1727394641604,-500.0,0.00019452,2]
[339243282,1727394641616,-24609.76,0.00019452,2]
[339243283,1727394641631,-500.0,0.00019452,2]
[339243284,1727394641642,-630.28,0.00019452,2]
[339243285,1727394641652,-500.0,0.00019473,2]
[339243286,1727394641662,-1000.0,0.00019481,2]
[339243287,1727394641671,-1000.0,0.00019481,2]
[339243288,1727394641680,-156.738118,0.00019531,2]
[339243289,1727394641690,-331.82,0.00019726,2]
[339243290,1727394641700,-312.23,0.00019726,2]
[339243291,1727394641709,-500.0,0.00019726,2]
[339243292,1727394641718,-500.0,0.00019726,2]
[339243293,1727394641731,-312.82046089,0.00019726,2]
[339243294,1727394641740,-4475.54,0.00019726,2]
[339243295,1727394641749,-339.8628852,0.00019726,2]
[339243296,1727394641759,-387.08560347,0.00019726,2]
[339243297,1727394641770,-500.0,0.00019726,2]
[339243298,1727394641779,-257.21,0.00019726,2]
[339243299,1727394641788,-161.83390764,0.00019726,2]
[339243300,1727394641797,-500.0,0.00019726,2]
[339243301,1727394641806,-697.71,0.00019726,2]
[339243302,1727394641818,-597.74310965,0.00019726,2]
[339243303,1727394641827,-500.0,0.00019726,2]
[339243304,1727394641836,-500.0,0.00019726,2]
[339243305,1727394641846,-500.0,0.00019726,2]
[339243306,1727394641856,-503.39798103,0.00019726,2]
[339243307,1727394641865,-500.0,0.00019726,2]
[339243308,1727394641874,-230.08,0.00019726,2]
[339243309,1727394641884,-500.0,0.00019726,2]
[339243310,1727394641894,-502.09868353,0.00019726,2]
[339243311,1727394641903,-500.0,0.00019726,2]
[339243312,1727394641914,-522.4921492,0.00019726,2]
[339243313,1727394641923,-500.0,0.00019726,2]
[339243314,1727394641934,-24609.76,0.00019726,2]
[339243315,1727394641943,-507.92874699,0.00019726,2]
[339243316,1727394641953,-630.28,0.00019726,2]
[339243317,1727394641962,-500.0,0.00019909,2]
[339243318,1727394641971,-33591.8014385,0.0001999,3]
[339243319,1727394641981,-428.16614108,0.0002,2]
[339243320,1727394641990,-500.0,0.0002,2]
[339243321,1727394642000,-1786.63568482,0.0002,2]
[339243359,1727395204200,500.0,0.0001,2]
[339243360,1727395204570,500.0,0.0001,2]
[339243361,1727395205111,500.0,0.0001,2]
[339243362,1727395205507,500.0,0.0001,2]
[339243363,1727395205883,474.51491418,0.0001,2]
[339243364,1727395300265,150.0,0.0001,2]
[339243365,1727395300838,150.0,0.00011,2]
[339243366,1727395301365,150.0,0.00012,2]
[339243367,1727395301792,151.764958,0.00013,2]
[339243371,1727395485711,537.8,0.00021,60]
[339243374,1727395503664,537.8,0.00021,60]
[339243375,1727395516423,537.8,0.00021,60]
[339243377,1727395540154,-297.431927,0.00017782,2]
[339243378,1727395540175,-330.4145299,0.00017934,2]
[339243379,1727395540198,-157.57177,0.00017996,2]
[339243380,1727395540220,-1714.28432193,0.00018034,2]
[339243381,1727395541119,-302.15106715,0.00018034,2]
[339243382,1727395549322,537.8,0.00021,60]
[339243383,1727395557736,537.8,0.00021,60]
[339243384,1727395628238,-664.12530584,0.00018034,2]
[339243385,1727395634100,-376.90058155,0.00018034,2]
[339243386,1727395644167,-219.0127299,0.00018034,2]
[339243387,1727395647112,-344.67503553,0.00018034,2]
[339243388,1727395647133,-29.78647252,0.00018058,2]
[339243389,1727395648157,-470.21352748,0.00018058,2]
[339243390,1727395648178,-337.36132426,0.00018058,2]
[339243391,1727395648198,-157.57177,0.00018465,2]
[339243392,1727395648219,-165.15569031,0.00018601,2]
[339243393,1727395766137,-106.17601569,0.00018601,2]
[339243394,1727395766160,-156.73812,0.00018601,2]
[339243395,1727395766183,-157.57177,0.00018934,2]
[339243396,1727395791308,163.646757,0.0001823,2]
[339243418,1727395831755,-204.58479923,0.0001897,2]
[339243420,1727395831765,-811.49392623,0.00019,2]
[339243422,1727395831777,-707.10607377,0.00019,2]
[339243424,1727395831787,-39.49978191,0.00019014,2]
[339243435,1727395834872,1454.26733731,0.00018089,2]
[339243436,1727395834895,1237.31008379,0.00018089,2]
[339243496,1727395838113,-125.58914578,0.00019014,2]
[339243501,1727395838150,-39.49587152,0.00019014,2]
[339243503,1727395838159,-204.58479921,0.00019057,2]
[339243504,1727395838169,-1042.42156261,0.00019067,2]
[339243506,1727395838178,-1042.42156261,0.00019069,2]
[339243508,1727395838187,-1042.42156261,0.0001907,2]
[339243510,1727395838196,-1042.42156261,0.00019072,2]
[339243512,1727395838205,-1042.42156261,0.00019073,2]
[339243514,1727395838216,-300.0,0.00019156,2]
[339243516,1727395838227,-164.80324829,0.00019156,2]
[339243518,1727395838238,-500.0,0.00019156,2]
[339243521,1727395838249,-500.0,0.00019156,2]
[339243522,1727395838258,-500.0,0.00019156,2]
[339243524,1727395838267,-500.0,0.00019156,2]
[339243526,1727395838276,-186.62369014,0.00019156,2]
[339243528,1727395838285,-162.88171031,0.00019156,2]
[339243530,1727395838294,-500.0,0.00019156,2]
[339243532,1727395838303,-500.0,0.00019156,2]
[339243534,1727395838316,-158.2014007,0.00019156,2]
[339243536,1727395838326,-500.0,0.00019156,2]
[339243538,1727395838337,-500.0,0.00019156,2]
[339243540,1727395838346,-500.0,0.00019156,2]
[339243542,1727395838356,-500.0,0.00019156,2]
[339243544,1727395838365,-500.0,0.00019156,2]
[339243546,1727395838375,-1202.66509774,0.00019156,2]
[339243548,1727395838384,-500.0,0.00019156,2]
[339243550,1727395838393,-162.54855797,0.00019156,2]
[339243552,1727395838402,-462.17118065,0.00019156,2]
[339243554,1727395838411,-1202.66509774,0.00019156,2]
[339243556,1727395838420,-1202.66509774,0.00019156,2]
[339243558,1727395838429,-500.0,0.00019156,2]
[339243560,1727395838439,-1202.66509774,0.00019156,2]
[339243562,1727395838449,-314.25192832,0.00019156,2]
[339243564,1727395838458,-1202.66509774,0.00019156,2]
[339243566,1727395838467,-1202.66509774,0.00019156,2]
[339243568,1727395838476,-1202.66509774,0.00019156,2]
[339243570,1727395838485,-1202.66509774,0.00019156,2]
[339243572,1727395838494,-1202.66509774,0.00019156,2]
[339243574,1727395838503,-1202.66509774,0.00019156,2]
[339243576,1727395838512,-1202.66509774,0.00019156,2]
[339243578,1727395838522,-1202.66509774,0.00019156,2]
[339243580,1727395838532,-1202.66509774,0.00019156,2]
[339243582,1727395838541,-1202.66509774,0.00019156,2]
[339243584,1727395838550,-1202.66509774,0.00019156,2]
[339243585,1727395838559,-1202.66509774,0.00019156,2]
[339243588,1727395838568,-1202.66509774,0.00019156,2]
[339243589,1727395838577,-1202.66509774,0.00019156,2]
[339243591,1727395838586,-1202.66509774,0.00019156,2]
[339243593,1727395838595,-1202.66509774,0.00019156,2]
[339243595,1727395838604,-1202.66509774,0.00019156,2]
[339243597,1727395838613,-1202.66509774,0.00019156,2]
[339243599,1727395838622,-1202.66509774,0.00019156,2]
[339243601,1727395838631,-1202.66509774,0.00019156,2]
[339243603,1727395838640,-1202.66509774,0.00019156,2]
[339243605,1727395838649,-1202.66509774,0.00019156,2]
[339243607,1727395838658,-1202.66509774,0.00019156,2]
[339243609,1727395838668,-1202.66509774,0.00019156,2]
[339243611,1727395838677,-1202.66509774,0.00019156,2]
[339243613,1727395838686,-1202.66509774,0.00019156,2]
[339243629,1727395838821,-1202.66509774,0.00019156,2]
[339243631,1727395838830,-1202.66509774,0.00019156,2]
[339243633,1727395838839,-1202.66509774,0.00019156,2]
[339243635,1727395838849,-1202.66509774,0.00019156,2]
[339243637,1727395838858,-1202.66509774,0.00019156,2]
[339243639,1727395838866,-1202.66509774,0.00019156,2]
[339243641,1727395838876,-1202.66509774,0.00019156,2]
[339243643,1727395838884,-1202.66509774,0.00019156,2]
[339243645,1727395838893,-1202.66509774,0.00019156,2]
[339243647,1727395838902,-1202.66509774,0.00019156,2]
[339243649,1727395838911,-1202.66509774,0.00019156,2]
[339243651,1727395838920,-1202.66509774,0.00019156,2]
[339243653,1727395838930,-1202.66509774,0.00019156,2]
[339243655,1727395838940,-1202.66509774,0.00019156,2]
[339243657,1727395838949,-1202.66509774,0.00019156,2]
[339243659,1727395838958,-1202.66509774,0.00019156,2]
[339243660,1727395838967,-1202.66509774,0.00019156,2]
[339243662,1727395838976,-1202.66509774,0.00019156,2]
[339243664,1727395838986,-1202.66509774,0.00019156,2]
[339243666,1727395838995,-1202.66509774,0.00019156,2]
[339243668,1727395839005,-1202.66509774,0.00019156,2]
[339243670,1727395839014,-1202.66509774,0.00019156,2]
[339243672,1727395839024,-1202.66509774,0.00019156,2]
[339243674,1727395839033,-1202.66509774,0.00019156,2]
[339243676,1727395839043,-1202.66509774,0.00019156,2]
[339243678,1727395839052,-1202.66509774,0.00019156,2]
[339243680,1727395839061,-1202.66509774,0.00019156,2]
[339243683,1727395839071,-1202.66509774,0.00019156,2]
[339243685,1727395839081,-1202.66509774,0.00019156,2]
[339243687,1727395839090,-1202.66509774,0.00019156,2]
[339243688,1727395839098,-1202.66509774,0.00019156,2]
[339243690,1727395839107,-1202.66509774,0.00019156,2]
[339243692,1727395839115,-1202.66509774,0.00019156,2]
[339243694,1727395839125,-1202.66509774,0.00019156,2]
[339243696,1727395839134,-1202.66509774,0.00019156,2]
[339243698,1727395839143,-1202.66509774,0.00019156,2]
[339243700,1727395839156,-189.18544747,0.00019157,2]
[339243702,1727395839166,-277.41,0.00019158,3]
[339243703,1727395839175,-832.27,0.00019158,3]
[339243705,1727395839184,-23961.1807202,0.00019158,3]
[339243707,1727395839194,-147828.246558,0.00019158,3]
[339243709,1727395839203,-3678.595309,0.00019168,2]
[339243711,1727395839214,-5748.26903873,0.00019168,2]
[339243713,1727395839223,-19168.9445762,0.00019168,3]
[339243715,1727395839235,-118262.597246,0.00019168,3]
[339243717,1727395839247,-500.0,0.00019173,2]
[339243719,1727395839256,-500.0,0.00019173,2]
[339243722,1727395839265,-534.58287951,0.00019173,2]
[339243724,1727395839274,-500.0,0.00019173,2]
[339243726,1727395839283,-500.0,0.00019173,2]
[339243728,1727395839293,-431.74563962,0.00019173,2]
[339243730,1727395839302,-501.87737867,0.00019173,2]
[339243732,1727395839311,-160.0,0.00019177,2]
[339243735,1727395839320,-350.63898744,0.00019178,2]
[339243738,1727395839330,-502.62861919,0.00019178,2]
[339243740,1727395839339,-500.0,0.00019178,2]
[339243742,1727395839349,-500.0,0.00019178,2]
[339243744,1727395839358,-500.0,0.00019178,2]
[339243747,1727395839367,-500.0,0.00019178,2]
[339243750,1727395839376,-502.54731216,0.00019178,2]
[339243752,1727395839385,-500.0,0.00019178,2]
[339243753,1727395839394,-505.48783982,0.00019178,2]
[339243755,1727395839403,-536.22,0.00019178,2]
[339243757,1727395839412,-500.0,0.00019178,2]
[339243760,1727395839423,-629.04013236,0.00019178,2]
[339243762,1727395839433,-504.01293509,0.00019178,2]
[339243764,1727395839443,-500.0,0.00019178,2]
[339243766,1727395839454,-504.84670358,0.00019178,2]
[339243768,1727395839463,-505.84105672,0.00019178,2]
[339243770,1727395839473,-503.24517051,0.00019178,2]
[339243772,1727395839482,-500.0,0.00019178,2]
[339243774,1727395839491,-502.79658034,0.00019178,2]
[339243776,1727395839501,-503.97492249,0.00019178,2]
[339243778,1727395839510,-500.0,0.00019178,2]
[339243780,1727395839519,-501.09977609,0.00019178,2]
[339243782,1727395839528,-500.0,0.00019178,2]
[339243784,1727395839537,-503.93265508,0.00019178,2]
[339243785,1727395839546,-503.46727178,0.00019178,2]
[339243787,1727395839555,-500.0,0.00019178,2]
[339243790,1727395839565,-503.33782431,0.00019178,2]
[339243791,1727395839574,-500.0,0.00019178,2]
[339243793,1727395839583,-779.89,0.00019178,2]
[339243795,1727395839592,-500.0,0.00019178,2]
[339243797,1727395839602,-1424.76,0.00019178,2]
[339243799,1727395839611,-501.93254897,0.00019178,2]
[339243802,1727395839620,-500.0,0.00019178,2]
[339243803,1727395839630,-1654.15,0.00019178,2]
[339243805,1727395839639,-764.24,0.00019178,2]
[339243807,1727395839648,-397.92905079,0.00019178,2]
[339243809,1727395839658,-517.53662068,0.00019178,2]
[339243811,1727395839667,-496.01865832,0.00019178,2]
[339243813,1727395839676,-500.0,0.00019178,2]
[339243815,1727395839685,-505.45652523,0.00019178,2]
[339243817,1727395839694,-500.0,0.00019178,2]
[339243819,1727395839703,-501.40429349,0.00019178,2]
[339243820,1727395839713,-500.0,0.00019178,2]
[339243822,1727395839722,-501.45629944,0.00019178,2]
[339243824,1727395839732,-503.82445046,0.00019178,2]
[339243825,1727395839741,-500.0,0.00019178,2]
[339243827,1727395839752,-500.0,0.00019178,2]
[339243829,1727395839762,-1447.04,0.00019178,2]
[339243831,1727395839771,-500.0,0.00019178,2]
[339243833,1727395839780,-500.0,0.00019178,2]
[339243834,1727395839789,-500.0,0.00019178,2]
[339243836,1727395839798,-500.0,0.00019178,2]
[339243838,1727395839808,-500.0,0.00019178,2]
[339243840,1727395839819,-500.0,0.00019178,2]
[339243842,1727395839828,-500.0,0.00019178,2]
[339243844,1727395839839,-500.0,0.00019178,2]
[339243845,1727395839849,-500.0,0.00019178,2]
[339243846,1727395839859,-500.0,0.00019178,2]
[339243847,1727395839869,-500.0,0.00019178,2]
[339243848,1727395839878,-500.0,0.00019178,2]
[339243849,1727395839887,-986.52,0.00019178,2]
[339243850,1727395839897,-500.0,0.00019178,2]
[339243851,1727395839907,-500.0,0.00019178,2]
[339243852,1727395839917,-501.82126435,0.00019178,2]
[339243853,1727395839928,-500.0,0.00019178,2]
[339243854,1727395839938,-500.0,0.00019178,2]
[339243855,1727395839947,-500.0,0.00019178,2]
[339243856,1727395839956,-501.54400137,0.00019178,2]
[339243857,1727395839965,-500.0,0.00019178,2]
[339243858,1727395839974,-500.0,0.00019178,2]
[339243859,1727395839983,-509.19869883,0.00019178,2]
[339243860,1727395839992,-500.0,0.00019178,2]
[339243861,1727395840002,-500.0,0.00019178,2]
[339243862,1727395840011,-181.57311314,0.00019178,2]
[339243863,1727395840021,-500.0,0.00019178,2]
[339243864,1727395840030,-500.0,0.00019178,2]
[339243865,1727395840039,-500.0,0.00019178,2]
[339243866,1727395840049,-500.0,0.00019178,2]
[339243867,1727395840059,-504.24188602,0.00019178,2]
[339243868,1727395840068,-500.0,0.00019178,2]
[339243869,1727395840078,-513.18335697,0.00019178,2]
[339243870,1727395840087,-518.36715894,0.00019178,2]
[339243871,1727395840096,-500.0,0.00019178,2]
[339243872,1727395840105,-500.0,0.00019178,2]
[339243873,1727395840114,-508.66414654,0.00019178,2]
[339243874,1727395840123,-500.0,0.00019178,2]
[339243876,1727395840133,-500.0,0.00019178,2]
[339243877,1727395840143,-500.0,0.00019178,2]
[339243878,1727395840158,-500.0,0.00019178,2]
[339243879,1727395840167,-502.01512412,0.00019178,2]
[339243880,1727395840176,-500.0,0.00019178,2]
[339243881,1727395840185,-647.98201812,0.00019178,2]
[339243882,1727395840197,-504.56709286,0.00019178,2]
[339243883,1727395840206,-502.05420717,0.00019178,2]
[339243885,1727395840215,-500.0,0.00019178,2]
[339243886,1727395840226,-500.0,0.00019178,2]
[339243887,1727395840236,-500.0,0.00019178,2]
[339243888,1727395840246,-500.0,0.00019178,2]
[339243889,1727395840255,-500.0,0.00019178,2]
[339243890,1727395840265,-502.05469324,0.00019178,2]
[339243891,1727395840274,-500.0,0.00019178,2]
[339243892,1727395840283,-500.0,0.00019178,2]
[339243893,1727395840293,-1000.0,0.00019178,2]
[339243894,1727395840302,-500.0,0.00019178,2]
[339243895,1727395840312,-500.0,0.00019178,2]
[339243896,1727395840323,-510.84484909,0.00019178,2]
[339243897,1727395840332,-192.41148625,0.00019178,2]
[339243898,1727395840342,-510.77839433,0.00019178,2]
[339243899,1727395840351,-502.52561091,0.00019178,2]
[339243900,1727395840360,-500.0,0.00019178,2]
[339243901,1727395840370,-432.99709698,0.00019178,2]
[339243902,1727395840379,-285.33730379,0.00019178,2]
[339243903,1727395840389,-500.0,0.00019178,2]
[339243904,1727395840398,-502.91320453,0.00019178,2]
[339243905,1727395840407,-500.0,0.00019178,2]
[339243906,1727395840417,-500.0,0.00019178,2]
[339243907,1727395840427,-500.0,0.00019178,2]
[339243908,1727395840437,-500.0,0.00019178,2]
[339243909,1727395840446,-500.0,0.00019178,2]
[339243910,1727395840456,-504.87022391,0.00019178,2]
[339243911,1727395840465,-500.0,0.00019178,2]
[339243912,1727395840474,-509.58042751,0.00019178,2]
[339243913,1727395840484,-500.0,0.00019178,2]
[339243914,1727395840494,-500.0,0.00019178,2]
[339243915,1727395840504,-434.34485673,0.00019178,2]
[339243916,1727395840514,-257.21,0.00019178,2]
[339243917,1727395840523,-501.28478165,0.00019178,2]
[339243918,1727395840532,-500.0,0.00019178,2]
[339243919,1727395840543,-501.0279355,0.00019178,2]
[339243920,1727395840552,-500.0,0.00019178,2]
[339243921,1727395840562,-500.0,0.00019178,2]
[339243922,1727395840571,-500.0,0.00019178,2]
[339243924,1727395840580,-548.17,0.00019178,2]
[339243925,1727395840590,-500.0,0.00019178,2]
[339243927,1727395840599,-503.09312923,0.00019178,2]
[339243929,1727395840609,-500.0,0.00019178,2]
[339243931,1727395840618,-697.71,0.00019178,2]
[339243933,1727395840627,-516.07363785,0.00019178,2]
[339243934,1727395840636,-500.0,0.00019178,2]
[339243936,1727395840646,-500.0,0.00019178,2]
[339243938,1727395840656,-500.0,0.00019178,2]
[339243940,1727395840666,-500.0,0.00019178,2]
[339243942,1727395840677,-502.55736432,0.00019178,2]
[339243944,1727395840686,-590.86001864,0.00019178,2]
[339243946,1727395840696,-502.49782294,0.00019178,2]
[339243948,1727395840705,-501.79604313,0.00019178,2]
[339243950,1727395840715,-526.62330057,0.00019178,2]
[339243952,1727395840724,-509.80392608,0.00019178,2]
[339243954,1727395840733,-500.0,0.00019178,2]
[339243956,1727395840743,-503.37001526,0.00019178,2]
[339243958,1727395840754,-500.0,0.00019178,2]
[339243960,1727395840763,-500.8998125,0.00019178,2]
[339243962,1727395840773,-500.0,0.00019178,2]
[339243964,1727395840782,-2723.78,0.00019178,2]
[339243966,1727395840792,-500.0,0.00019178,2]
[339243968,1727395840801,-500.0,0.00019178,2]
[339243970,1727395840811,-2385.96,0.00019178,2]
[339243972,1727395840820,-500.0,0.00019178,2]
[339243974,1727395840829,-501.02999166,0.00019178,2]
[339243976,1727395840838,-620.18,0.00019178,2]
[339243978,1727395840848,-502.04151892,0.00019178,2]
[339243980,1727395840859,-566.00604449,0.00019178,2]
[339243982,1727395840868,-500.0,0.00019178,2]
[339243984,1727395840878,-500.0,0.00019178,2]
[339243986,1727395840886,-501.13446674,0.00019178,2]
[339243988,1727395840896,-500.0,0.00019178,2]
[339243989,1727395840905,-504.6117391,0.00019178,2]
[339243991,1727395840914,-500.0,0.00019178,2]
[339243993,1727395840923,-500.0,0.00019178,2]
[339243995,1727395840932,-527.16,0.00019178,2]
[339243997,1727395840941,-317.61739615,0.00019178,2]
[339243999,1727395840950,-597.06295807,0.00019178,2]
[339244001,1727395840959,-500.0,0.00019178,2]
[339244003,1727395840968,-500.0,0.00019178,2]
[339244005,1727395840978,-500.0,0.00019178,2]
[339244007,1727395840987,-500.0,0.00019178,2]
[339244009,1727395840997,-500.0,0.00019178,2]
[339244011,1727395841016,-510.15734833,0.00019178,2]
[339244013,1727395841026,-515.67353633,0.00019178,2]
[339244015,1727395841035,-515.17891446,0.00019178,2]
[339244017,1727395841044,-500.0,0.00019178,2]
[339244019,1727395841053,-500.0,0.00019178,2]
[339244021,1727395841062,-500.0,0.00019178,2]
[339244022,1727395841072,-500.0,0.00019178,2]
[339244024,1727395841081,-500.0,0.00019178,2]
[339244026,1727395841091,-500.0,0.00019178,2]
[339244028,1727395841100,-500.0,0.00019178,2]